[Event "Titled Tuesday Blitz April 4 Early 2023"]
[White "Yeletsky, Ivan"]
[Black "Pajeken, Jakob Leon"]
[WhiteFideId "24180327"]
[BlackFideId "12942839"]
[WhiteElo "2422"]
[BlackElo "2414"]
[Result "1-0"]
[Round "02"]
[TimeControl "180+2"]
[Date "2023.04.04"]
[WhiteClock "0:00:31"]
[BlackClock "0:00:04"]

1. Nf3 {[%clk 0:03:00]}  d5 {[%clk 0:02:59]} 2. g3 {[%clk 0:03:01]}  Nc6 {[%clk 0:02:59]} 3. Bg2 {[%clk 0:03:02]}  e5 {[%clk 0:02:59]} 4. d4 {[%clk 0:03:02]}  e4 {[%clk 0:02:52]} 5. Ne5 {[%clk 0:03:02]}  Bd6 {[%clk 0:02:53]} 6. Nxc6 {[%clk 0:03:02]}  bxc6 {[%clk 0:02:54]} 7. c4 {[%clk 0:03:03]}  Nf6 {[%clk 0:02:53]} 8. Qa4 {[%clk 0:03:01]}  Bd7 {[%clk 0:02:48]} 9. c5 {[%clk 0:03:01]}  Be7 {[%clk 0:02:48]} 10. Nc3 {[%clk 0:03:01]}  O-O {[%clk 0:02:47]} 11. O-O {[%clk 0:02:55]}  Nh5 {[%clk 0:02:39]} 12. g4 {[%clk 0:02:14]}  Bxg4 {[%clk 0:02:26]} 13. Qxc6 {[%clk 0:02:13]}  Nf6 {[%clk 0:02:26]} 14. f3 {[%clk 0:02:13]}  Bd7 {[%clk 0:02:25]} 15. Qa6 {[%clk 0:02:12]}  Bf5 {[%clk 0:02:14]} 16. Bg5 {[%clk 0:02:01]}  h6 {[%clk 0:02:09]} 17. Bxf6 {[%clk 0:01:50]}  Bxf6 {[%clk 0:02:10]} 18. e3 {[%clk 0:01:50]}  Re8 {[%clk 0:01:43]} 19. fxe4 {[%clk 0:01:50]}  Bxe4 {[%clk 0:01:44]} 20. Bxe4 {[%clk 0:01:41]}  dxe4 {[%clk 0:01:45]} 21. Qc4 {[%clk 0:01:32]}  c6 {[%clk 0:01:42]} 22. Rf5 {[%clk 0:01:25]}  Rb8 {[%clk 0:01:33]} 23. b3 {[%clk 0:01:25]}  a5 {[%clk 0:01:26]} 24. a3 {[%clk 0:01:03]}  Qd7 {[%clk 0:01:10]} 25. Raf1 {[%clk 0:01:02]}  Re6 {[%clk 0:01:11]} 26. b4 {[%clk 0:00:57]}  axb4 {[%clk 0:01:05]} 27. axb4 {[%clk 0:00:58]}  Qb7 {[%clk 0:01:02]} 28. d5 {[%clk 0:00:58]}  cxd5 {[%clk 0:00:52]} 29. Nxd5 {[%clk 0:00:59]}  Bg5 {[%clk 0:00:22]} 30. Rxf7 {[%clk 0:00:58]}  Qc6 {[%clk 0:00:17]} 31. Ne7+ {[%clk 0:00:53]}  Rxe7 {[%clk 0:00:15]} 32. Rxe7+ {[%clk 0:00:41]}  Kh8 {[%clk 0:00:15]} 33. Rxe4 {[%clk 0:00:42]}  Qg6 {[%clk 0:00:15]} 34. Kh1 {[%clk 0:00:41]}  Rd8 {[%clk 0:00:13]} 35. Qe6 {[%clk 0:00:40]}  Qh5 {[%clk 0:00:12]} 36. Qg4 {[%clk 0:00:35]}  Qg6 {[%clk 0:00:12]} 37. b5 {[%clk 0:00:34]}  Rd2 {[%clk 0:00:12]} 38. Qc8+ {[%clk 0:00:31]}  Kh7 {[%clk 0:00:11]} 39. Qf5 {[%clk 0:00:32]}  Qxf5 {[%clk 0:00:09]} 40. Rxf5 {[%clk 0:00:32]}  Rb2 {[%clk 0:00:10]} 41. Rxg5 {[%clk 0:00:30]}  hxg5 {[%clk 0:00:10]} 42. b6 {[%clk 0:00:31]}  Kg6 {[%clk 0:00:08]} 43. Rc4 {[%clk 0:00:31]}  Kh5 {[%clk 0:00:07]} 44. c6 {[%clk 0:00:32]}  g4 {[%clk 0:00:08]} 45. c7 {[%clk 0:00:32]}  g3 {[%clk 0:00:06]} 46. hxg3 {[%clk 0:00:30]}  Rxb6 {[%clk 0:00:06]} 47. c8=Q {[%clk 0:00:30]}  Rh6 {[%clk 0:00:07]} 48. Rh4+ {[%clk 0:00:29]}  Kg5 {[%clk 0:00:03]} 49. Rxh6 {[%clk 0:00:30]}  g6 {[%clk 0:00:04]} 50. Qh8 {[%clk 0:00:29]}  Kg4 {[%clk 0:00:04]} 51. Rh4+ {[%clk 0:00:29]}  Kf3 {[%clk 0:00:04]} 52. Qf6+ {[%clk 0:00:29]}  Ke2 {[%clk 0:00:04]} 53. Qxg6 {[%clk 0:00:29]}  Kf2 {[%clk 0:00:04]} 54. Rf4+ {[%clk 0:00:30]}  Ke2 {[%clk 0:00:04]} 55. Qc2+ {[%clk 0:00:30]}  Ke1 {[%clk 0:00:04]} 56. Qf2+ {[%clk 0:00:29]}  Kd1 {[%clk 0:00:04]} 57. Qg2 {[%clk 0:00:30]}  Ke1 {[%clk 0:00:04]} 58. Rf1# {[%clk 0:00:31]} 1-0


[Site "https://www.chess.com"]

[Event "Titled Tuesday Blitz April 4 Early 2023"]
[White "Mendez Fortes, Eduardo Jesus"]
[Black "Pichot, Alan"]
[WhiteFideId "3502376"]
[BlackFideId "110973"]
[WhiteElo "2307"]
[BlackElo "2573"]
[Result "1-0"]
[Round "02"]
[TimeControl "180+2"]
[Date "2023.04.04"]
[WhiteClock "0:00:18"]
[BlackClock "0:00:24"]

1. e4 {[%clk 0:03:00]}  c5 {[%clk 0:02:59]} 2. Nf3 {[%clk 0:03:00]}  d6 {[%clk 0:02:58]} 3. d4 {[%clk 0:03:01]}  cxd4 {[%clk 0:02:58]} 4. Nxd4 {[%clk 0:03:02]}  Nf6 {[%clk 0:02:59]} 5. Nc3 {[%clk 0:03:02]}  a6 {[%clk 0:02:59]} 6. Bg5 {[%clk 0:03:02]}  Nbd7 {[%clk 0:02:56]} 7. Bc4 {[%clk 0:03:02]}  Qb6 {[%clk 0:02:35]} 8. Bb3 {[%clk 0:03:01]}  e6 {[%clk 0:02:35]} 9. Qd2 {[%clk 0:03:01]}  Nc5 {[%clk 0:02:32]} 10. f3 {[%clk 0:03:01]}  Be7 {[%clk 0:02:27]} 11. O-O-O {[%clk 0:03:00]}  Bd7 {[%clk 0:02:26]} 12. g4 {[%clk 0:02:55]}  a5 {[%clk 0:02:25]} 13. a3 {[%clk 0:02:48]}  Nxb3+ {[%clk 0:02:18]} 14. cxb3 {[%clk 0:02:35]}  Rc8 {[%clk 0:02:08]} 15. Kb1 {[%clk 0:02:35]}  Qa6 {[%clk 0:01:57]} 16. a4 {[%clk 0:02:29]}  O-O {[%clk 0:01:52]} 17. Ndb5 {[%clk 0:02:22]}  Bxb5 {[%clk 0:01:21]} 18. Nxb5 {[%clk 0:02:15]}  Rfd8 {[%clk 0:01:21]} 19. h4 {[%clk 0:02:10]}  Rd7 {[%clk 0:01:06]} 20. h5 {[%clk 0:02:00]}  h6 {[%clk 0:00:50]} 21. Be3 {[%clk 0:01:57]}  Nh7 {[%clk 0:00:50]} 22. f4 {[%clk 0:01:45]}  Nf6 {[%clk 0:00:49]} 23. Qg2 {[%clk 0:01:39]}  Qc6 {[%clk 0:00:48]} 24. Na7 {[%clk 0:01:38]}  Qxe4+ {[%clk 0:00:38]} 25. Qxe4 {[%clk 0:01:37]}  Nxe4 {[%clk 0:00:39]} 26. Nxc8 {[%clk 0:01:37]}  Bf6 {[%clk 0:00:39]} 27. g5 {[%clk 0:01:32]}  hxg5 {[%clk 0:00:39]} 28. fxg5 {[%clk 0:01:33]}  Be5 {[%clk 0:00:39]} 29. Nb6 {[%clk 0:01:30]}  Rd8 {[%clk 0:00:39]} 30. Nc4 {[%clk 0:01:30]}  Bg3 {[%clk 0:00:39]} 31. Nxa5 {[%clk 0:01:18]}  Rd7 {[%clk 0:00:39]} 32. g6 {[%clk 0:01:09]}  f5 {[%clk 0:00:36]} 33. Rc1 {[%clk 0:00:58]}  Kf8 {[%clk 0:00:37]} 34. h6 {[%clk 0:00:48]}  gxh6 {[%clk 0:00:34]} 35. Bxh6+ {[%clk 0:00:48]}  Ke7 {[%clk 0:00:33]} 36. g7 {[%clk 0:00:48]}  Rd8 {[%clk 0:00:33]} 37. Bg5+ {[%clk 0:00:25]}  Nxg5 {[%clk 0:00:32]} 38. Rh8 {[%clk 0:00:26]}  Be5 {[%clk 0:00:28]} 39. Rc7+ {[%clk 0:00:21]}  Rd7 {[%clk 0:00:24]} 40. Rxd7+ {[%clk 0:00:21]}  Kxd7 {[%clk 0:00:25]} 41. g8=Q {[%clk 0:00:22]}  Bxh8 {[%clk 0:00:25]} 42. Qxh8 {[%clk 0:00:23]}  Ne4 {[%clk 0:00:25]} 43. Nc4 {[%clk 0:00:21]}  Kc6 {[%clk 0:00:24]} 44. Qc8+ {[%clk 0:00:18]}  Kd5 {[%clk 0:00:25]} 45. Qxb7+ {[%clk 0:00:19]}  Kd4 {[%clk 0:00:25]} 46. a5 {[%clk 0:00:19]}  d5 {[%clk 0:00:25]} 47. a6 {[%clk 0:00:19]}  dxc4 {[%clk 0:00:25]} 48. a7 {[%clk 0:00:19]}  cxb3 {[%clk 0:00:23]} 49. a8=Q {[%clk 0:00:19]}  Ke3 {[%clk 0:00:24]} 50. Qaa7+ {[%clk 0:00:18]}  Kf4 {[%clk 0:00:24]} 51. Qc7+ {[%clk 0:00:18]} 1-0


[Site "https://www.chess.com"]

[Event "Titled Tuesday Blitz April 4 Early 2023"]
[White "Fiorito, Joaquin"]
[Black "Costachi, Mihnea"]
[WhiteFideId "180173"]
[BlackFideId "1217518"]
[WhiteElo "2157"]
[BlackElo "2456"]
[Result "0-1"]
[Round "02"]
[TimeControl "180+2"]
[Date "2023.04.04"]
[WhiteClock "0:00:02"]
[BlackClock "0:00:38"]

1. d4 {[%clk 0:03:00]}  Nf6 {[%clk 0:02:59]} 2. c4 {[%clk 0:03:01]}  e6 {[%clk 0:02:59]} 3. Nc3 {[%clk 0:03:01]}  d5 {[%clk 0:02:59]} 4. cxd5 {[%clk 0:02:56]}  exd5 {[%clk 0:02:59]} 5. Bg5 {[%clk 0:02:55]}  c6 {[%clk 0:02:58]} 6. e3 {[%clk 0:02:55]}  h6 {[%clk 0:02:57]} 7. Bh4 {[%clk 0:02:54]}  Bd6 {[%clk 0:02:57]} 8. Bd3 {[%clk 0:02:53]}  Be6 {[%clk 0:02:57]} 9. Nge2 {[%clk 0:02:47]}  Nbd7 {[%clk 0:02:57]} 10. O-O {[%clk 0:02:47]}  O-O {[%clk 0:02:56]} 11. Rb1 {[%clk 0:02:38]}  Qc7 {[%clk 0:02:54]} 12. Bg3 {[%clk 0:02:34]}  a5 {[%clk 0:02:55]} 13. Qc2 {[%clk 0:02:29]}  Bxg3 {[%clk 0:02:51]} 14. Nxg3 {[%clk 0:02:27]}  Rfe8 {[%clk 0:02:50]} 15. a3 {[%clk 0:02:16]}  Qd6 {[%clk 0:02:39]} 16. Rfd1 {[%clk 0:02:08]}  b5 {[%clk 0:02:38]} 17. Nce2 {[%clk 0:01:56]}  Nb6 {[%clk 0:02:34]} 18. Nf4 {[%clk 0:01:47]}  a4 {[%clk 0:02:34]} 19. Qd2 {[%clk 0:01:15]}  Nc4 {[%clk 0:02:33]} 20. Bxc4 {[%clk 0:01:14]}  bxc4 {[%clk 0:02:33]} 21. f3 {[%clk 0:01:14]}  Bd7 {[%clk 0:02:25]} 22. Re1 {[%clk 0:01:11]}  c5 {[%clk 0:02:24]} 23. Rbd1 {[%clk 0:01:06]}  Be6 {[%clk 0:02:04]} 24. Nxe6 {[%clk 0:00:41]}  fxe6 {[%clk 0:02:02]} 25. e4 {[%clk 0:00:40]}  Qb6 {[%clk 0:01:50]} 26. dxc5 {[%clk 0:00:22]}  Qxc5+ {[%clk 0:01:49]} 27. Kh1 {[%clk 0:00:23]}  Rab8 {[%clk 0:01:47]} 28. Re2 {[%clk 0:00:18]}  Red8 {[%clk 0:01:45]} 29. e5 {[%clk 0:00:19]}  Nd7 {[%clk 0:01:41]} 30. Qf4 {[%clk 0:00:19]}  c3 {[%clk 0:01:36]} 31. bxc3 {[%clk 0:00:19]}  Qxa3 {[%clk 0:01:36]} 32. Qg4 {[%clk 0:00:19]}  Nf8 {[%clk 0:01:35]} 33. Nh5 {[%clk 0:00:19]}  Qe7 {[%clk 0:01:36]} 34. Nf6+ {[%clk 0:00:19]}  Kh8 {[%clk 0:01:36]} 35. Nh5 {[%clk 0:00:19]}  a3 {[%clk 0:01:33]} 36. Ra2 {[%clk 0:00:19]}  Ra8 {[%clk 0:01:34]} 37. Rda1 {[%clk 0:00:18]}  Rdb8 {[%clk 0:01:31]} 38. h3 {[%clk 0:00:18]}  Rb3 {[%clk 0:01:31]} 39. Nf4 {[%clk 0:00:17]}  Rxc3 {[%clk 0:01:28]} 40. Ne2 {[%clk 0:00:14]}  Rd3 {[%clk 0:01:26]} 41. Nf4 {[%clk 0:00:11]}  Rb3 {[%clk 0:01:25]} 42. Kh2 {[%clk 0:00:11]}  Qf7 {[%clk 0:01:21]} 43. Nh5 {[%clk 0:00:11]}  Nd7 {[%clk 0:01:17]} 44. f4 {[%clk 0:00:07]}  Nf8 {[%clk 0:01:16]} 45. Qd1 {[%clk 0:00:06]}  Rc3 {[%clk 0:01:11]} 46. Qd2 {[%clk 0:00:06]}  Rac8 {[%clk 0:01:09]} 47. Ng3 {[%clk 0:00:05]}  Qe7 {[%clk 0:01:07]} 48. f5 {[%clk 0:00:03]}  exf5 {[%clk 0:01:06]} 49. Re1 {[%clk 0:00:04]}  Qe6 {[%clk 0:01:01]} 50. Qf4 {[%clk 0:00:03]}  Ng6 {[%clk 0:00:54]} 51. Qxf5 {[%clk 0:00:03]}  Qxf5 {[%clk 0:00:55]} 52. Nxf5 {[%clk 0:00:04]}  Re8 {[%clk 0:00:56]} 53. e6 {[%clk 0:00:04]}  Ne7 {[%clk 0:00:45]} 54. Nd6 {[%clk 0:00:04]}  Ra8 {[%clk 0:00:44]} 55. Nb5 {[%clk 0:00:04]}  Rb3 {[%clk 0:00:42]} 56. Nc7 {[%clk 0:00:04]}  Rc8 {[%clk 0:00:39]} 57. Na6 {[%clk 0:00:02]}  Rc6 {[%clk 0:00:39]} 58. Rf1 {[%clk 0:00:01]}  Rxa6 {[%clk 0:00:39]} 59. Rf7 {[%clk 0:00:02]}  Rxe6 {[%clk 0:00:38]} 60. Rf8+ {[%clk 0:00:02]}  Kh7 {[%clk 0:00:38]} 0-1


[Site "https://www.chess.com"]

[Event "Titled Tuesday Blitz April 4 Early 2023"]
[White "Mammadov, Zaur"]
[Black "Castellanos Villela, Alejandro"]
[WhiteFideId "13401033"]
[BlackFideId "3446379"]
[WhiteElo "2441"]
[BlackElo "2103"]
[Result "1-0"]
[Round "02"]
[TimeControl "180+2"]
[Date "2023.04.04"]
[WhiteClock "0:01:03"]
[BlackClock "0:00:15"]

1. e4 {[%clk 0:03:00]}  c5 {[%clk 0:02:59]} 2. c3 {[%clk 0:03:01]}  d5 {[%clk 0:02:58]} 3. exd5 {[%clk 0:03:02]}  Qxd5 {[%clk 0:02:57]} 4. d4 {[%clk 0:03:02]}  Nc6 {[%clk 0:02:58]} 5. Nf3 {[%clk 0:03:03]}  Bg4 {[%clk 0:02:58]} 6. Be2 {[%clk 0:03:02]}  e6 {[%clk 0:02:58]} 7. h3 {[%clk 0:03:03]}  Bh5 {[%clk 0:02:57]} 8. c4 {[%clk 0:03:03]}  Qd8 {[%clk 0:02:42]} 9. d5 {[%clk 0:03:03]}  exd5 {[%clk 0:02:36]} 10. g4 {[%clk 0:03:03]}  Bg6 {[%clk 0:02:32]} 11. cxd5 {[%clk 0:03:03]}  Qa5+ {[%clk 0:01:58]} 12. Nc3 {[%clk 0:03:02]}  O-O-O {[%clk 0:01:49]} 13. O-O {[%clk 0:02:56]}  Nf6 {[%clk 0:01:47]} 14. Bf4 {[%clk 0:02:51]}  Nb4 {[%clk 0:01:44]} 15. Bc4 {[%clk 0:02:33]}  Bd6 {[%clk 0:01:30]} 16. Bxd6 {[%clk 0:02:25]}  Rxd6 {[%clk 0:01:31]} 17. a3 {[%clk 0:02:25]}  Nbxd5 {[%clk 0:01:31]} 18. Nxd5 {[%clk 0:02:26]}  Nxd5 {[%clk 0:01:31]} 19. b4 {[%clk 0:02:03]}  cxb4 {[%clk 0:01:29]} 20. axb4 {[%clk 0:02:04]}  Qd8 {[%clk 0:01:13]} 21. Rxa7 {[%clk 0:02:03]}  Nb6 {[%clk 0:01:11]} 22. Qa1 {[%clk 0:01:45]}  Qf6 {[%clk 0:00:46]} 23. Ne5 {[%clk 0:01:13]}  Nxc4 {[%clk 0:00:17]} 24. Rc1 {[%clk 0:01:06]}  b5 {[%clk 0:00:15]} 25. Ra8+ {[%clk 0:01:03]} 1-0


[Site "https://www.chess.com"]

[Event "Titled Tuesday Blitz April 4 Early 2023"]
[White "Lymar, Vladislav"]
[Black "Timofeev, Artyom"]
[WhiteFideId "14162180"]
[BlackFideId "4140419"]
[WhiteElo "2234"]
[BlackElo "2586"]
[Result "1-0"]
[Round "02"]
[TimeControl "180+2"]
[Date "2023.04.04"]
[WhiteClock "0:00:03"]
[BlackClock "0:00:06"]

1. d4 {[%clk 0:02:59]}  d5 {[%clk 0:02:58]} 2. Nf3 {[%clk 0:02:58]}  e6 {[%clk 0:02:56]} 3. e3 {[%clk 0:02:56]}  Nf6 {[%clk 0:02:55]} 4. b3 {[%clk 0:02:55]}  Bd6 {[%clk 0:02:52]} 5. Bb2 {[%clk 0:02:55]}  O-O {[%clk 0:02:51]} 6. Bd3 {[%clk 0:02:55]}  b6 {[%clk 0:02:50]} 7. O-O {[%clk 0:02:50]}  Bb7 {[%clk 0:02:48]} 8. Nbd2 {[%clk 0:02:49]}  Nbd7 {[%clk 0:02:48]} 9. c4 {[%clk 0:02:42]}  Qe7 {[%clk 0:02:45]} 10. Qc2 {[%clk 0:02:29]}  c5 {[%clk 0:02:26]} 11. a4 {[%clk 0:02:22]}  cxd4 {[%clk 0:02:14]} 12. Nxd4 {[%clk 0:02:17]}  Ne5 {[%clk 0:02:00]} 13. Be2 {[%clk 0:02:07]}  dxc4 {[%clk 0:01:52]} 14. Nxc4 {[%clk 0:02:02]}  Nxc4 {[%clk 0:01:52]} 15. Bxc4 {[%clk 0:02:03]}  Rac8 {[%clk 0:01:21]} 16. Nb5 {[%clk 0:02:00]}  Bb4 {[%clk 0:00:27]} 17. Nxa7 {[%clk 0:01:56]}  Rcd8 {[%clk 0:00:26]} 18. Rfd1 {[%clk 0:01:46]}  Bxg2 {[%clk 0:00:22]} 19. Kxg2 {[%clk 0:01:37]}  Qxa7 {[%clk 0:00:22]} 20. Bxf6 {[%clk 0:01:34]}  Qb7+ {[%clk 0:00:22]} 21. f3 {[%clk 0:01:22]}  gxf6 {[%clk 0:00:21]} 22. Rd3 {[%clk 0:01:12]}  Bc5 {[%clk 0:00:20]} 23. Rad1 {[%clk 0:01:09]}  Rxd3 {[%clk 0:00:20]} 24. Rxd3 {[%clk 0:01:09]}  f5 {[%clk 0:00:20]} 25. Qd2 {[%clk 0:01:04]}  Qe7 {[%clk 0:00:19]} 26. Qf2 {[%clk 0:00:58]}  Kh8 {[%clk 0:00:18]} 27. Kf1 {[%clk 0:00:56]}  Rg8 {[%clk 0:00:18]} 28. Bb5 {[%clk 0:00:53]}  Qf6 {[%clk 0:00:17]} 29. Qc2 {[%clk 0:00:30]}  f4 {[%clk 0:00:16]} 30. Qc3 {[%clk 0:00:21]}  Qxc3 {[%clk 0:00:15]} 31. Rxc3 {[%clk 0:00:21]}  Bxe3 {[%clk 0:00:15]} 32. Rc2 {[%clk 0:00:17]}  Rg1+ {[%clk 0:00:15]} 33. Ke2 {[%clk 0:00:18]}  Kg7 {[%clk 0:00:15]} 34. Kd3 {[%clk 0:00:11]}  Kf6 {[%clk 0:00:15]} 35. b4 {[%clk 0:00:11]}  h5 {[%clk 0:00:15]} 36. a5 {[%clk 0:00:10]}  bxa5 {[%clk 0:00:15]} 37. bxa5 {[%clk 0:00:11]}  Rd1+ {[%clk 0:00:14]} 38. Ke2 {[%clk 0:00:08]}  Ra1 {[%clk 0:00:14]} 39. a6 {[%clk 0:00:08]}  h4 {[%clk 0:00:14]} 40. Kd3 {[%clk 0:00:07]}  h3 {[%clk 0:00:14]} 41. Ke4 {[%clk 0:00:06]}  Ra5 {[%clk 0:00:13]} 42. Be2 {[%clk 0:00:04]}  Ra4+ {[%clk 0:00:13]} 43. Kd3 {[%clk 0:00:05]}  Ra3+ {[%clk 0:00:12]} 44. Ke4 {[%clk 0:00:05]}  Ra4+ {[%clk 0:00:12]} 45. Kd3 {[%clk 0:00:05]}  Rxa6 {[%clk 0:00:12]} 46. Ke4 {[%clk 0:00:04]}  Ra4+ {[%clk 0:00:12]} 47. Kd3 {[%clk 0:00:05]}  Ke5 {[%clk 0:00:12]} 48. Rb2 {[%clk 0:00:04]}  Ra3+ {[%clk 0:00:12]} 49. Kc2 {[%clk 0:00:04]}  Ra1 {[%clk 0:00:12]} 50. Rb5+ {[%clk 0:00:04]}  Kf6 {[%clk 0:00:12]} 51. Rh5 {[%clk 0:00:04]}  Ra2+ {[%clk 0:00:12]} 52. Kd1 {[%clk 0:00:04]}  Rd2+ {[%clk 0:00:13]} 53. Ke1 {[%clk 0:00:04]}  Rb2 {[%clk 0:00:12]} 54. Kd1 {[%clk 0:00:04]}  Rb1+ {[%clk 0:00:11]} 55. Kc2 {[%clk 0:00:04]}  Rc1+ {[%clk 0:00:11]} 56. Kd3 {[%clk 0:00:04]}  Ra1 {[%clk 0:00:11]} 57. Rxh3 {[%clk 0:00:04]}  Ra2 {[%clk 0:00:12]} 58. Rh5 {[%clk 0:00:03]}  Rd2+ {[%clk 0:00:11]} 59. Ke4 {[%clk 0:00:04]}  Rxe2 {[%clk 0:00:08]} 60. h4 {[%clk 0:00:04]}  Rh2 {[%clk 0:00:06]} 61. Rh6+ {[%clk 0:00:03]} 1-0


[Site "https://www.chess.com"]

[Event "Titled Tuesday Blitz April 4 Early 2023"]
[White "Ordekalog"]
[Black "Pranav Anand"]
[BlackFideId "46626786"]
[WhiteElo "2553"]
[BlackElo "2389"]
[Result "1-0"]
[Round "02"]
[TimeControl "180+2"]
[Date "2023.04.04"]
[WhiteClock "0:00:07"]
[BlackClock "0:00:24"]

1. d4 {[%clk 0:03:00]}  Nf6 {[%clk 0:02:59]} 2. c4 {[%clk 0:03:00]}  e6 {[%clk 0:03:00]} 3. Nc3 {[%clk 0:02:59]}  Bb4 {[%clk 0:03:00]} 4. Bd2 {[%clk 0:02:58]}  O-O {[%clk 0:02:58]} 5. Rc1 {[%clk 0:02:58]}  d6 {[%clk 0:02:58]} 6. Nf3 {[%clk 0:02:56]}  Nbd7 {[%clk 0:02:57]} 7. e3 {[%clk 0:02:55]}  Bxc3 {[%clk 0:02:57]} 8. Bxc3 {[%clk 0:02:54]}  Ne4 {[%clk 0:02:57]} 9. Bd3 {[%clk 0:02:54]}  Nxc3 {[%clk 0:02:58]} 10. Rxc3 {[%clk 0:02:53]}  Qe7 {[%clk 0:02:58]} 11. O-O {[%clk 0:02:47]}  e5 {[%clk 0:02:57]} 12. Bb1 {[%clk 0:02:25]}  Nf6 {[%clk 0:02:37]} 13. c5 {[%clk 0:02:22]}  e4 {[%clk 0:02:33]} 14. cxd6 {[%clk 0:02:20]}  cxd6 {[%clk 0:02:34]} 15. Nd2 {[%clk 0:02:20]}  d5 {[%clk 0:02:33]} 16. Qb3 {[%clk 0:02:03]}  Be6 {[%clk 0:02:28]} 17. Rfc1 {[%clk 0:02:02]}  Ng4 {[%clk 0:02:15]} 18. h3 {[%clk 0:01:59]}  Nh6 {[%clk 0:02:16]} 19. Nf1 {[%clk 0:01:53]}  Qg5 {[%clk 0:02:15]} 20. Ng3 {[%clk 0:01:51]}  b6 {[%clk 0:02:14]} 21. Qd1 {[%clk 0:01:43]}  g6 {[%clk 0:02:04]} 22. Rc7 {[%clk 0:01:38]}  Qh4 {[%clk 0:01:52]} 23. R1c6 {[%clk 0:01:23]}  b5 {[%clk 0:01:40]} 24. a3 {[%clk 0:01:22]}  a5 {[%clk 0:01:32]} 25. Ba2 {[%clk 0:01:22]}  Rad8 {[%clk 0:01:30]} 26. Ra7 {[%clk 0:01:18]}  Rc8 {[%clk 0:01:28]} 27. Rc5 {[%clk 0:01:14]}  Qd8 {[%clk 0:00:58]} 28. b4 {[%clk 0:01:10]}  axb4 {[%clk 0:00:57]} 29. axb4 {[%clk 0:01:10]}  Qd6 {[%clk 0:00:45]} 30. Ra5 {[%clk 0:00:55]}  Rb8 {[%clk 0:00:39]} 31. Qc1 {[%clk 0:00:45]}  Nf5 {[%clk 0:00:35]} 32. Nxf5 {[%clk 0:00:44]}  gxf5 {[%clk 0:00:36]} 33. g3 {[%clk 0:00:31]}  f4 {[%clk 0:00:35]} 34. exf4 {[%clk 0:00:31]}  Kh8 {[%clk 0:00:34]} 35. Kh2 {[%clk 0:00:29]}  Qd7 {[%clk 0:00:34]} 36. h4 {[%clk 0:00:28]}  Rfd8 {[%clk 0:00:30]} 37. f5 {[%clk 0:00:23]}  Bxf5 {[%clk 0:00:27]} 38. Rxd5 {[%clk 0:00:24]}  Qxd5 {[%clk 0:00:23]} 39. Bxd5 {[%clk 0:00:23]}  Rxd5 {[%clk 0:00:24]} 40. Qc6 {[%clk 0:00:17]}  Rbd8 {[%clk 0:00:19]} 41. Qf6+ {[%clk 0:00:16]}  Kg8 {[%clk 0:00:19]} 42. Rxb5 {[%clk 0:00:13]}  Be6 {[%clk 0:00:19]} 43. Rxd5 {[%clk 0:00:11]}  Rxd5 {[%clk 0:00:20]} 44. Qf4 {[%clk 0:00:06]}  f5 {[%clk 0:00:19]} 45. Qe3 {[%clk 0:00:06]}  Kf7 {[%clk 0:00:19]} 46. Qc3 {[%clk 0:00:06]}  Bd7 {[%clk 0:00:20]} 47. Qc4 {[%clk 0:00:05]}  Ke6 {[%clk 0:00:20]} 48. Qa6+ {[%clk 0:00:05]}  Rd6 {[%clk 0:00:20]} 49. Qa2+ {[%clk 0:00:06]}  Ke7 {[%clk 0:00:21]} 50. Qg8 {[%clk 0:00:06]}  h6 {[%clk 0:00:22]} 51. Qg7+ {[%clk 0:00:06]}  Kd8 {[%clk 0:00:22]} 52. Qe5 {[%clk 0:00:06]}  Kc7 {[%clk 0:00:23]} 53. Qc5+ {[%clk 0:00:05]}  Rc6 {[%clk 0:00:23]} 54. Qa7+ {[%clk 0:00:05]}  Kc8 {[%clk 0:00:23]} 55. Qa8+ {[%clk 0:00:05]}  Kc7 {[%clk 0:00:23]} 56. Qa5+ {[%clk 0:00:06]}  Kb7 {[%clk 0:00:22]} 57. Qe5 {[%clk 0:00:07]}  Rb6 {[%clk 0:00:21]} 58. Qe7 {[%clk 0:00:06]}  Kc8 {[%clk 0:00:21]} 59. Qf8+ {[%clk 0:00:06]}  Kc7 {[%clk 0:00:21]} 60. Qc5+ {[%clk 0:00:05]}  Rc6 {[%clk 0:00:21]} 61. Qe5+ {[%clk 0:00:06]}  Kc8 {[%clk 0:00:21]} 62. b5 {[%clk 0:00:06]}  Rc2 {[%clk 0:00:20]} 63. Kg2 {[%clk 0:00:05]}  Rb2 {[%clk 0:00:19]} 64. Qc5+ {[%clk 0:00:05]}  Kd8 {[%clk 0:00:19]} 65. Qf8+ {[%clk 0:00:04]}  Kc7 {[%clk 0:00:20]} 66. Qc5+ {[%clk 0:00:05]}  Kb7 {[%clk 0:00:21]} 67. Qd5+ {[%clk 0:00:05]}  Kc8 {[%clk 0:00:21]} 68. Qg8+ {[%clk 0:00:04]}  Kc7 {[%clk 0:00:22]} 69. Qc4+ {[%clk 0:00:04]}  Kb8 {[%clk 0:00:21]} 70. Qg8+ {[%clk 0:00:04]}  Kb7 {[%clk 0:00:21]} 71. Qd5+ {[%clk 0:00:04]}  Kc7 {[%clk 0:00:21]} 72. Qc4+ {[%clk 0:00:04]}  Kb6 {[%clk 0:00:21]} 73. Qc3 {[%clk 0:00:05]}  Rxb5 {[%clk 0:00:20]} 74. h5 {[%clk 0:00:06]}  Rd5 {[%clk 0:00:20]} 75. Qe3 {[%clk 0:00:06]}  Bc6 {[%clk 0:00:20]} 76. Qxh6 {[%clk 0:00:06]}  e3 {[%clk 0:00:21]} 77. f3 {[%clk 0:00:04]}  e2 {[%clk 0:00:20]} 78. Qe6 {[%clk 0:00:04]}  Rxd4 {[%clk 0:00:19]} 79. Qxe2 {[%clk 0:00:05]}  Rd6 {[%clk 0:00:19]} 80. Qe3+ {[%clk 0:00:05]}  Kc7 {[%clk 0:00:20]} 81. Kh3 {[%clk 0:00:05]}  Bd7 {[%clk 0:00:19]} 82. Qf4 {[%clk 0:00:05]}  Kc6 {[%clk 0:00:16]} 83. h6 {[%clk 0:00:06]}  Re6 {[%clk 0:00:16]} 84. h7 {[%clk 0:00:05]}  Re8 {[%clk 0:00:17]} 85. Qh6+ {[%clk 0:00:05]}  Kd5 {[%clk 0:00:17]} 86. h8=Q {[%clk 0:00:06]}  f4+ {[%clk 0:00:18]} 87. g4 {[%clk 0:00:04]}  Rxh8 {[%clk 0:00:18]} 88. Qxh8 {[%clk 0:00:04]}  Be6 {[%clk 0:00:19]} 89. Qb2 {[%clk 0:00:05]}  Bd7 {[%clk 0:00:19]} 90. Qd2+ {[%clk 0:00:05]}  Ke5 {[%clk 0:00:20]} 91. Qxd7 {[%clk 0:00:05]}  Kf6 {[%clk 0:00:20]} 92. Qf5+ {[%clk 0:00:06]}  Ke7 {[%clk 0:00:21]} 93. Qxf4 {[%clk 0:00:06]}  Ke6 {[%clk 0:00:22]} 94. Qg5 {[%clk 0:00:06]}  Kd7 {[%clk 0:00:22]} 95. Qf6 {[%clk 0:00:06]}  Kc7 {[%clk 0:00:23]} 96. g5 {[%clk 0:00:06]}  Kb7 {[%clk 0:00:24]} 97. g6 {[%clk 0:00:07]} 1-0


[Site "https://www.chess.com"]